[Event "Late-Titled-Tuesday-Blitz-April-16-2024"]
[Site "Chess.com"]
[Date "2024.04.16"]
[Round "6"]
[White "Sanan_Sjugirov"]
[Black "albi1999"]
[Result "1-0"]
[WhiteElo "3019"]
[BlackElo "2676"]
[TimeControl "180+1"]
[EndTime "15:01:45 PDT"]
[Termination "Sanan_Sjugirov won by resignation"]

1. e4 {[%clk 0:03:00.9]} 1... e5 {[%clk 0:02:58.8]} 2. Nf3 {[%clk 0:03:01]} 2...
Nc6 {[%clk 0:02:59.5]} 3. Bb5 {[%clk 0:03:01.4]} 3... a6 {[%clk 0:02:57.8]} 4.
Ba4 {[%clk 0:03:01.8]} 4... d6 {[%clk 0:02:58.4]} 5. O-O {[%clk 0:03:00.8]} 5...
Bd7 {[%clk 0:02:58.4]} 6. c4 {[%clk 0:03:00.7]} 6... Bg4 {[%clk 0:02:53.4]} 7.
d4 {[%clk 0:02:43.7]} 7... exd4 {[%clk 0:02:45.9]} 8. Bxc6+ {[%clk 0:02:43.7]}
8... bxc6 {[%clk 0:02:45.8]} 9. Qxd4 {[%clk 0:02:44.4]} 9... Bxf3 {[%clk
0:02:43.4]} 10. gxf3 {[%clk 0:02:45.3]} 10... Ne7 {[%clk 0:02:42.4]} 11. Nc3
{[%clk 0:02:44.9]} 11... c5 {[%clk 0:02:42.4]} 12. Qd3 {[%clk 0:02:43.6]} 12...
Nc6 {[%clk 0:02:32.3]} 13. f4 {[%clk 0:02:44.1]} 13... Be7 {[%clk 0:02:31.2]}
14. Kh1 {[%clk 0:02:43.9]} 14... O-O {[%clk 0:02:30.5]} 15. Rg1 {[%clk 0:02:43]}
15... Kh8 {[%clk 0:02:17.8]} 16. Nd5 {[%clk 0:02:42.5]} 16... Bf6 {[%clk
0:02:02]} 17. Nxf6 {[%clk 0:02:27.1]} 17... Qxf6 {[%clk 0:02:02.9]} 18. Bd2
{[%clk 0:02:27.3]} 18... Nd4 {[%clk 0:02:00.5]} 19. f5 {[%clk 0:02:26.3]} 19...
Rae8 {[%clk 0:01:54.4]} 20. Bc3 {[%clk 0:02:22.8]} 20... Qh4 {[%clk 0:01:49.3]}
21. f3 {[%clk 0:02:21.2]} 21... Qh5 {[%clk 0:01:25.8]} 22. Rg3 {[%clk 0:02:16]}
22... f6 {[%clk 0:01:19.6]} 23. Bxd4 {[%clk 0:02:14]} 23... cxd4 {[%clk
0:01:20.5]} 24. Qxd4 {[%clk 0:02:14.7]} 24... Re5 {[%clk 0:01:20.7]} 25. Rag1
{[%clk 0:02:13.4]} 25... Rf7 {[%clk 0:01:08.1]} 26. b4 {[%clk 0:02:10]} 26...
Rd7 {[%clk 0:00:50.7]} 27. Qa7 {[%clk 0:02:00.8]} 27... a5 {[%clk 0:00:40.1]}
28. bxa5 {[%clk 0:01:56.9]} 28... Qe8 {[%clk 0:00:37.3]} 29. a6 {[%clk
0:01:55.1]} 29... Ra5 {[%clk 0:00:32.5]} 30. Qb7 {[%clk 0:01:53.8]} 30... c5
{[%clk 0:00:20.6]} 31. Rxg7 {[%clk 0:01:31.1]} 31... Rxb7 {[%clk 0:00:19.7]} 32.
axb7 {[%clk 0:01:32]} 32... Rxa2 {[%clk 0:00:14.3]} 33. Rg8+ {[%clk 0:01:32.1]}
33... Qxg8 {[%clk 0:00:12.6]} 34. Rxg8+ {[%clk 0:01:33]} 34... Kxg8 {[%clk
0:00:13.5]} 35. b8=Q+ {[%clk 0:01:33.3]} 35... Kg7 {[%clk 0:00:13.9]} 36. Qxd6
{[%clk 0:01:33.4]} 1-0

[Event "Late-Titled-Tuesday-Blitz-April-16-2024"]
[Site "Chess.com"]
[Date "2024.04.16"]
[Round "6"]
[White "GAO"]
[Black "zano2023"]
[Result "0-1"]
[WhiteElo "2293"]
[BlackElo "2179"]
[TimeControl "180+1"]
[EndTime "15:01:47 PDT"]
[Termination "zano2023 won by resignation"]

1. e4 {[%clk 0:02:56]} 1... e5 {[%clk 0:02:58.7]} 2. Nf3 {[%clk 0:02:55.5]} 2...
d6 {[%clk 0:02:59.4]} 3. d4 {[%clk 0:02:55.6]} 3... f5 {[%clk 0:02:58.1]} 4.
dxe5 {[%clk 0:02:31.5]} 4... fxe4 {[%clk 0:02:58.1]} 5. Ng5 {[%clk 0:02:30.8]}
5... d5 {[%clk 0:02:58.3]} 6. e6 {[%clk 0:02:22.3]} 6... Nh6 {[%clk 0:02:57.1]}
7. Nc3 {[%clk 0:01:53.6]} 7... c6 {[%clk 0:02:53.7]} 8. Nf7 {[%clk 0:01:45.3]}
8... Nxf7 {[%clk 0:02:53]} 9. exf7+ {[%clk 0:01:45.5]} 9... Kxf7 {[%clk
0:02:53.1]} 10. Be2 {[%clk 0:01:17.6]} 10... Bc5 {[%clk 0:02:49.2]} 11. O-O
{[%clk 0:01:15.2]} 11... Rf8 {[%clk 0:02:49.7]} 12. Be3 {[%clk 0:01:07.1]} 12...
Bxe3 {[%clk 0:02:42.5]} 13. fxe3+ {[%clk 0:01:06.7]} 13... Kg8 {[%clk
0:02:43.2]} 14. Qd4 {[%clk 0:00:54.3]} 14... Nd7 {[%clk 0:02:28.5]} 15. Nxe4
{[%clk 0:00:43.4]} 15... dxe4 {[%clk 0:02:18.1]} 16. Bc4+ {[%clk 0:00:43.4]}
16... Kh8 {[%clk 0:02:17.3]} 17. Rxf8+ {[%clk 0:00:43]} 17... Qxf8 {[%clk
0:02:16.3]} 18. Rf1 {[%clk 0:00:41]} 18... Nf6 {[%clk 0:02:13.2]} 19. Qxe4
{[%clk 0:00:40.1]} 19... Bd7 {[%clk 0:02:07.5]} 20. Qh4 {[%clk 0:00:38.6]} 20...
Qe7 {[%clk 0:02:00.7]} 21. Rf3 {[%clk 0:00:33.7]} 21... Be6 {[%clk 0:01:54.4]}
22. Bd3 {[%clk 0:00:32.6]} 22... Bg8 {[%clk 0:01:43.5]} 23. h3 {[%clk
0:00:23.8]} 23... Re8 {[%clk 0:01:42.4]} 24. Qa4 {[%clk 0:00:18.5]} 24... b5
{[%clk 0:01:40.5]} 25. Qd4 {[%clk 0:00:17.2]} 25... c5 {[%clk 0:01:34.9]} 26.
Qc3 {[%clk 0:00:13.3]} 26... c4 {[%clk 0:01:34.9]} 27. Bf1 {[%clk 0:00:13.1]}
27... Ne4 {[%clk 0:01:31.5]} 28. Qd4 {[%clk 0:00:13]} 28... Rd8 {[%clk
0:01:28.4]} 29. Qxe4 {[%clk 0:00:01.4]} 29... Qxe4 {[%clk 0:01:27.5]} 0-1

[Event "Late-Titled-Tuesday-Blitz-April-16-2024"]
[Site "Chess.com"]
[Date "2024.04.16"]
[Round "6"]
[White "LUISMIGUELOV"]
[Black "Fjal"]
[Result "0-1"]
[WhiteElo "2180"]
[BlackElo "2316"]
[TimeControl "180+1"]
[EndTime "15:01:56 PDT"]
[Termination "Fjal won on time"]

1. d4 {[%clk 0:01:33.2]} 1... d6 {[%clk 0:03:00.9]} 2. c3 {[%clk 0:01:32.8]}
2... g6 {[%clk 0:03:00.3]} 3. Bf4 {[%clk 0:01:33.1]} 3... Bg7 {[%clk 0:03:01.2]}
4. Nf3 {[%clk 0:01:32.6]} 4... Bg4 {[%clk 0:03:01]} 5. e3 {[%clk 0:01:32.7]}
5... e5 {[%clk 0:03:01.6]} 6. dxe5 {[%clk 0:01:31.9]} 6... dxe5 {[%clk
0:03:02.5]} 7. Bg3 {[%clk 0:01:29.8]} 7... Qxd1+ {[%clk 0:03:02.4]} 8. Kxd1
{[%clk 0:01:27.7]} 8... e4 {[%clk 0:03:03.2]} 9. h3 {[%clk 0:01:27.1]} 9... Bh5
{[%clk 0:03:03.5]} 10. Be2 {[%clk 0:01:23.2]} 10... exf3 {[%clk 0:03:03.4]} 11.
gxf3 {[%clk 0:01:23]} 11... Na6 {[%clk 0:02:55.7]} 12. Nd2 {[%clk 0:01:18.6]}
12... O-O-O {[%clk 0:02:54.9]} 13. Ke1 {[%clk 0:01:16.5]} 13... Nc5 {[%clk
0:02:54.4]} 14. Ne4 {[%clk 0:01:08.1]} 14... Nd3+ {[%clk 0:02:50.8]} 15. Bxd3
{[%clk 0:01:05.2]} 15... Bxf3 {[%clk 0:02:43.3]} 16. Bc4 {[%clk 0:00:42.7]}
16... Bxh1 {[%clk 0:02:39.8]} 17. Ng5 {[%clk 0:00:43.1]} 17... Nh6 {[%clk
0:02:37.4]} 18. Bxf7 {[%clk 0:00:40.5]} 18... Nxf7 {[%clk 0:02:33.9]} 19. Nxf7
{[%clk 0:00:40.3]} 19... Bf3 {[%clk 0:02:32.2]} 20. Nxh8 {[%clk 0:00:39.4]}
20... Bxh8 {[%clk 0:02:31.4]} 21. Bh4 {[%clk 0:00:39]} 21... Rd5 {[%clk
0:02:27.6]} 22. Bg3 {[%clk 0:00:37.4]} 22... c6 {[%clk 0:02:23.1]} 23. h4 {[%clk
0:00:37.8]} 23... g5 {[%clk 0:02:20.5]} 24. hxg5 {[%clk 0:00:36.8]} 24... Rxg5
{[%clk 0:02:20.8]} 25. Kd2 {[%clk 0:00:37.3]} 25... Rd5+ {[%clk 0:02:17.7]} 26.
Kc2 {[%clk 0:00:36.7]} 26... Be4+ {[%clk 0:02:18.2]} 27. Kb3 {[%clk 0:00:36.6]}
27... Rd2 {[%clk 0:02:18]} 28. Rg1 {[%clk 0:00:34]} 28... Bf6 {[%clk 0:02:17.3]}
29. f3 {[%clk 0:00:28.7]} 29... Bc2+ {[%clk 0:02:15.8]} 30. Ka3 {[%clk
0:00:27.5]} 30... Be7+ {[%clk 0:02:11.7]} 31. b4 {[%clk 0:00:26.8]} 31... Bd3
{[%clk 0:02:10.6]} 32. Be5 {[%clk 0:00:23.8]} 32... Bc4 {[%clk 0:02:08.6]} 33.
Ra1 {[%clk 0:00:23.4]} 33... b5 {[%clk 0:02:06.8]} 34. f4 {[%clk 0:00:21.1]}
34... Kd7 {[%clk 0:02:05.5]} 35. f5 {[%clk 0:00:21]} 35... h5 {[%clk 0:02:05.9]}
36. e4 {[%clk 0:00:16.8]} 36... h4 {[%clk 0:02:00.9]} 37. Bf4 {[%clk 0:00:17]}
37... Re2 {[%clk 0:01:58.6]} 38. e5 {[%clk 0:00:15.8]} 38... h3 {[%clk
0:01:58.2]} 39. e6+ {[%clk 0:00:16.2]} 39... Ke8 {[%clk 0:01:57.2]} 40. Bb8
{[%clk 0:00:14.9]} 40... a5 {[%clk 0:01:55]} 41. Bc7 {[%clk 0:00:10.4]} 41...
axb4+ {[%clk 0:01:52.3]} 42. cxb4 {[%clk 0:00:11.3]} 42... Bf6 {[%clk
0:01:52.8]} 0-1

[Event "Late-Titled-Tuesday-Blitz-April-16-2024"]
[Site "Chess.com"]
[Date "2024.04.16"]
[Round "6"]
[White "Rainbow2014"]
[Black "BeanScreen"]
[Result "0-1"]
[WhiteElo "2444"]
[BlackElo "2662"]
[TimeControl "180+1"]
[EndTime "15:01:58 PDT"]
[Termination "BeanScreen won by checkmate"]

1. e4 {[%clk 0:02:45.5]} 1... e5 {[%clk 0:02:59.9]} 2. Nf3 {[%clk 0:02:45.3]}
2... Nc6 {[%clk 0:03:00.4]} 3. Bb5 {[%clk 0:02:45.7]} 3... f5 {[%clk 0:03:00.8]}
4. Nc3 {[%clk 0:02:44]} 4... fxe4 {[%clk 0:03:00.7]} 5. Nxe4 {[%clk 0:02:44.9]}
5... Nf6 {[%clk 0:03:00.8]} 6. Qe2 {[%clk 0:02:43.9]} 6... d5 {[%clk 0:03:00.5]}
7. Nxf6+ {[%clk 0:02:43.2]} 7... gxf6 {[%clk 0:03:01.4]} 8. O-O {[%clk
0:02:33.3]} 8... Bg4 {[%clk 0:03:00.4]} 9. h3 {[%clk 0:02:32.9]} 9... Bh5 {[%clk
0:02:59.9]} 10. Qe3 {[%clk 0:02:26.2]} 10... Bd6 {[%clk 0:02:49.6]} 11. d4
{[%clk 0:02:25.1]} 11... e4 {[%clk 0:02:49.2]} 12. Nh4 {[%clk 0:02:17.4]} 12...
Qd7 {[%clk 0:02:47.3]} 13. Qh6 {[%clk 0:02:14.5]} 13... Bf7 {[%clk 0:02:31.5]}
14. Qxf6 {[%clk 0:02:12.7]} 14... Rg8 {[%clk 0:02:31.6]} 15. Nf5 {[%clk
0:02:11.6]} 15... Rg6 {[%clk 0:02:18.6]} 16. Nxd6+ {[%clk 0:02:07.1]} 16... cxd6
{[%clk 0:02:18.1]} 17. Qh4 {[%clk 0:02:03.5]} 17... a6 {[%clk 0:02:14]} 18. Be2
{[%clk 0:02:00]} 18... Nxd4 {[%clk 0:02:12.4]} 19. Bg4 {[%clk 0:01:58.3]} 19...
Be6 {[%clk 0:01:56.2]} 20. Bh5 {[%clk 0:01:58]} 20... Nf3+ {[%clk 0:01:53.9]}
21. Bxf3 {[%clk 0:01:55]} 21... exf3 {[%clk 0:01:54.8]} 22. g3 {[%clk
0:01:49.8]} 22... Bxh3 {[%clk 0:01:43.1]} 23. Re1+ {[%clk 0:01:49.8]} 23... Be6
{[%clk 0:01:43.1]} 24. Bd2 {[%clk 0:01:39.6]} 24... Rc8 {[%clk 0:01:40.7]} 25.
Qh5 {[%clk 0:01:27.9]} 25... Qf7 {[%clk 0:01:29.8]} 26. Qxd5 {[%clk 0:00:46.6]}
26... Rxg3+ {[%clk 0:01:28.8]} 27. fxg3 {[%clk 0:00:46.1]} 27... f2+ {[%clk
0:01:29.7]} 28. Kg2 {[%clk 0:00:42.2]} 28... f1=Q+ {[%clk 0:01:29.4]} 29. Rxf1
{[%clk 0:00:32.4]} 29... Bxd5+ {[%clk 0:01:29.2]} 30. Kg1 {[%clk 0:00:32]} 30...
Qh5 {[%clk 0:01:25.3]} 31. Rae1+ {[%clk 0:00:30.1]} 31... Kd7 {[%clk 0:01:25.3]}
32. Rf4 {[%clk 0:00:06.2]} 32... Qh1+ {[%clk 0:01:24.1]} 33. Kf2 {[%clk
0:00:06.6]} 33... Qg2+ {[%clk 0:01:25]} 34. Ke3 {[%clk 0:00:07]} 34... Re8+
{[%clk 0:01:24.3]} 35. Kd4 {[%clk 0:00:07]} 35... Qxd2# {[%clk 0:01:22.9]} 0-1

[Event "Late-Titled-Tuesday-Blitz-April-16-2024"]
[Site "Chess.com"]
[Date "2024.04.16"]
[Round "6"]
[White "Rawnsdale"]
[Black "SaqoChess_Twitch"]
[Result "0-1"]
[WhiteElo "2494"]
[BlackElo "2679"]
[TimeControl "180+1"]
[EndTime "15:02:02 PDT"]
[Termination "SaqoChess_Twitch won by resignation"]

1. e4 {[%clk 0:03:00.9]} 1... c5 {[%clk 0:02:59.6]} 2. Nf3 {[%clk 0:03:00.8]}
2... d6 {[%clk 0:03:00.3]} 3. d4 {[%clk 0:03:00.9]} 3... cxd4 {[%clk 0:03:01.2]}
4. Nxd4 {[%clk 0:03:01.7]} 4... Nf6 {[%clk 0:03:02.1]} 5. Nc3 {[%clk 0:03:02.3]}
5... g6 {[%clk 0:03:02.8]} 6. Bg5 {[%clk 0:02:59.6]} 6... Bg7 {[%clk 0:03:03.2]}
7. Qd2 {[%clk 0:02:59.6]} 7... O-O {[%clk 0:03:03.8]} 8. O-O-O {[%clk
0:02:59.4]} 8... Nc6 {[%clk 0:03:04.5]} 9. Kb1 {[%clk 0:02:53.1]} 9... Nxd4
{[%clk 0:02:57.5]} 10. Qxd4 {[%clk 0:02:51.1]} 10... Be6 {[%clk 0:02:57.3]} 11.
f3 {[%clk 0:02:46]} 11... Qa5 {[%clk 0:02:53.9]} 12. Qa4 {[%clk 0:02:22.7]}
12... Qxg5 {[%clk 0:02:52.3]} 13. h4 {[%clk 0:02:15.7]} 13... Qc5 {[%clk
0:02:51.1]} 14. g4 {[%clk 0:02:11.4]} 14... a6 {[%clk 0:02:48.9]} 15. h5 {[%clk
0:02:11]} 15... b5 {[%clk 0:02:48.9]} 16. Qa5 {[%clk 0:02:10.9]} 16... b4 {[%clk
0:02:48.8]} 17. Qxc5 {[%clk 0:02:07.8]} 17... dxc5 {[%clk 0:02:49.7]} 18. Na4
{[%clk 0:02:08.7]} 18... c4 {[%clk 0:02:47.9]} 19. h6 {[%clk 0:02:06.8]} 19...
Bh8 {[%clk 0:02:47.5]} 20. Nb6 {[%clk 0:01:59.9]} 20... Rad8 {[%clk 0:02:46.7]}
21. Bxc4 {[%clk 0:01:58.4]} 21... Bxc4 {[%clk 0:02:38.3]} 22. Nxc4 {[%clk
0:01:56.9]} 22... Nd7 {[%clk 0:02:32.5]} 23. Rd5 {[%clk 0:01:52.9]} 23... e6
{[%clk 0:02:28.8]} 24. Ra5 {[%clk 0:01:50.6]} 24... Nb8 {[%clk 0:02:24.6]} 25.
e5 {[%clk 0:01:47.3]} 25... Rd4 {[%clk 0:02:19.2]} 26. b3 {[%clk 0:01:46.8]}
26... Rfd8 {[%clk 0:02:19.1]} 27. Kb2 {[%clk 0:01:42.2]} 27... Nc6 {[%clk
0:02:14.9]} 28. Rc5 {[%clk 0:01:42]} 28... Ne7 {[%clk 0:02:05.6]} 29. a3 {[%clk
0:01:37.6]} 29... bxa3+ {[%clk 0:02:03.6]} 30. Kxa3 {[%clk 0:01:37.6]} 30... Nd5
{[%clk 0:02:03.8]} 31. Kb2 {[%clk 0:01:34.9]} 31... Rf4 {[%clk 0:02:00.8]} 32.
Rf1 {[%clk 0:01:18.2]} 32... f6 {[%clk 0:02:00.9]} 33. Nd2 {[%clk 0:01:12.7]}
33... f5 {[%clk 0:01:53.9]} 34. Nc4 {[%clk 0:01:04.1]} 34... fxg4 {[%clk
0:01:52.8]} 35. Rc6 {[%clk 0:01:00.4]} 35... Re8 {[%clk 0:01:29.1]} 36. Rxa6
{[%clk 0:00:58.3]} 36... Rxf3 {[%clk 0:01:28.3]} 37. Rfa1 {[%clk 0:00:57.3]}
37... Ne3 {[%clk 0:01:25.6]} 38. R1a4 {[%clk 0:00:46.5]} 38... Nxc4+ {[%clk
0:01:24.5]} 39. Rxc4 {[%clk 0:00:47.4]} 39... Bxe5+ {[%clk 0:01:24.7]} 40. Ka2
{[%clk 0:00:47.9]} 40... Rf1 {[%clk 0:01:23.2]} 41. c3 {[%clk 0:00:42.1]} 41...
g3 {[%clk 0:01:23.6]} 42. Rg4 {[%clk 0:00:33.6]} 42... Bxc3 {[%clk 0:01:15.8]}
0-1

[Event "Late-Titled-Tuesday-Blitz-April-16-2024"]
[Site "Chess.com"]
[Date "2024.04.16"]
[Round "6"]
[White "cedchass2006"]
[Black "GMMikhailKazakov"]
[Result "1-0"]
[WhiteElo "2406"]
[BlackElo "2499"]
[TimeControl "180+1"]
[EndTime "15:02:05 PDT"]
[Termination "cedchass2006 won on time"]

1. e4 {[%clk 0:02:58.7]} 1... d6 {[%clk 0:02:59.1]} 2. d4 {[%clk 0:02:57.1]}
2... Nf6 {[%clk 0:02:59.2]} 3. Nc3 {[%clk 0:02:56.7]} 3... e5 {[%clk 0:02:58.6]}
4. Nf3 {[%clk 0:02:56.6]} 4... Nbd7 {[%clk 0:02:57]} 5. g4 {[%clk 0:02:55.9]}
5... Nxg4 {[%clk 0:02:52.4]} 6. Rg1 {[%clk 0:02:51.2]} 6... Ngf6 {[%clk
0:02:52.2]} 7. Be3 {[%clk 0:02:49.4]} 7... c6 {[%clk 0:02:50.4]} 8. Qd2 {[%clk
0:02:48.9]} 8... Qa5 {[%clk 0:02:46.5]} 9. O-O-O {[%clk 0:02:47.9]} 9... b5
{[%clk 0:02:30.4]} 10. dxe5 {[%clk 0:02:43.6]} 10... dxe5 {[%clk 0:02:24.1]} 11.
Kb1 {[%clk 0:02:43.7]} 11... b4 {[%clk 0:02:20]} 12. Na4 {[%clk 0:02:43.5]}
12... Qxa4 {[%clk 0:01:35.5]} 13. Nxe5 {[%clk 0:02:42.7]} 13... Qa5 {[%clk
0:01:21.4]} 14. Nxc6 {[%clk 0:01:25.2]} 14... Qa4 {[%clk 0:01:11.2]} 15. e5
{[%clk 0:01:15.1]} 15... Qxc6 {[%clk 0:00:49.3]} 16. exf6 {[%clk 0:01:14.7]}
16... Qxf6 {[%clk 0:00:41.7]} 17. Bg5 {[%clk 0:01:12.2]} 17... Qd6 {[%clk
0:00:08.3]} 18. Re1+ {[%clk 0:00:52.6]} 18... Ne5 {[%clk 0:00:07.9]} 19. Rxe5+
{[%clk 0:00:52]} 19... Be6 {[%clk 0:00:08.1]} 20. Bb5+ {[%clk 0:00:49.8]} 1-0

[Event "Late-Titled-Tuesday-Blitz-April-16-2024"]
[Site "Chess.com"]
[Date "2024.04.16"]
[Round "6"]
[White "a-z30"]
[Black "ozates"]
[Result "0-1"]
[WhiteElo "2385"]
[BlackElo "2538"]
[TimeControl "180+1"]
[EndTime "15:02:11 PDT"]
[Termination "ozates won by checkmate"]

1. d3 {[%clk 0:03:00.9]} 1... e5 {[%clk 0:02:59.7]} 2. Nf3 {[%clk 0:03:01.2]}
2... d6 {[%clk 0:02:58.3]} 3. g3 {[%clk 0:03:01.2]} 3... c5 {[%clk 0:02:58.6]}
4. Bg2 {[%clk 0:03:01.4]} 4... g6 {[%clk 0:02:59.3]} 5. O-O {[%clk 0:03:01.7]}
5... Bg7 {[%clk 0:03:00.2]} 6. c4 {[%clk 0:03:01.9]} 6... Nc6 {[%clk 0:03:00.8]}
7. Nc3 {[%clk 0:03:02.4]} 7... Nge7 {[%clk 0:03:01.2]} 8. Rb1 {[%clk 0:03:02.8]}
8... O-O {[%clk 0:03:01.4]} 9. a3 {[%clk 0:03:02.4]} 9... a5 {[%clk 0:03:01.4]}
10. b3 {[%clk 0:03:02.2]} 10... h6 {[%clk 0:03:01.2]} 11. Bb2 {[%clk 0:03:01.9]}
11... Be6 {[%clk 0:03:00.6]} 12. e3 {[%clk 0:03:00.7]} 12... Rb8 {[%clk
0:02:44.9]} 13. Qc2 {[%clk 0:02:27.8]} 13... f5 {[%clk 0:02:34.9]} 14. Rfd1
{[%clk 0:02:16.6]} 14... g5 {[%clk 0:02:33.9]} 15. Nd2 {[%clk 0:01:56.1]} 15...
f4 {[%clk 0:02:30.6]} 16. Nd5 {[%clk 0:01:48.8]} 16... Bg4 {[%clk 0:02:17.7]}
17. Re1 {[%clk 0:01:39.7]} 17... f3 {[%clk 0:02:17.4]} 18. Bh1 {[%clk
0:01:08.7]} 18... Nxd5 {[%clk 0:02:17.3]} 19. cxd5 {[%clk 0:01:07.5]} 19... Ne7
{[%clk 0:02:17.9]} 20. h3 {[%clk 0:00:56.9]} 20... Bxh3 {[%clk 0:02:15.1]} 21.
Nxf3 {[%clk 0:00:50.2]} 21... Qd7 {[%clk 0:02:10.2]} 22. e4 {[%clk 0:00:42.9]}
22... Rf7 {[%clk 0:02:09.6]} 23. b4 {[%clk 0:00:42.6]} 23... Rbf8 {[%clk
0:02:09.9]} 24. Re3 {[%clk 0:00:28.2]} 24... g4 {[%clk 0:01:55.2]} 25. Nh4
{[%clk 0:00:27.3]} 25... Rxf2 {[%clk 0:01:50.2]} 26. Qxf2 {[%clk 0:00:26.5]}
26... Rxf2 {[%clk 0:01:51.1]} 27. Kxf2 {[%clk 0:00:26.7]} 27... cxb4 {[%clk
0:01:51.8]} 28. axb4 {[%clk 0:00:25.9]} 28... Qa4 {[%clk 0:01:50]} 29. Re2
{[%clk 0:00:16]} 29... axb4 {[%clk 0:01:44.9]} 30. Ra1 {[%clk 0:00:14.9]} 30...
Qb3 {[%clk 0:01:44.3]} 31. Rd2 {[%clk 0:00:12]} 31... Bf6 {[%clk 0:01:36.5]} 32.
Ra8+ {[%clk 0:00:09.3]} 32... Kg7 {[%clk 0:01:32]} 33. Nf5+ {[%clk 0:00:06.4]}
33... Nxf5 {[%clk 0:01:30]} 34. exf5 {[%clk 0:00:07.3]} 34... Bg5 {[%clk
0:01:25.5]} 35. Re2 {[%clk 0:00:07.3]} 35... Qxd3 {[%clk 0:01:21.9]} 36. Rc8
{[%clk 0:00:06.2]} 36... Qxf5+ {[%clk 0:01:19.3]} 37. Ke1 {[%clk 0:00:05.3]}
37... Qf1# {[%clk 0:01:18.3]} 0-1

[Event "Late-Titled-Tuesday-Blitz-April-16-2024"]
[Site "Chess.com"]
[Date "2024.04.16"]
[Round "6"]
[White "HansOnTwitch"]
[Black "LiemLe"]
[Result "0-1"]
[WhiteElo "3162"]
[BlackElo "3062"]
[TimeControl "180+1"]
[EndTime "15:02:13 PDT"]
[Termination "LiemLe won on time"]

1. e4 {[%clk 0:03:00.9]} 1... c5 {[%clk 0:03:00]} 2. Nf3 {[%clk 0:03:00.6]} 2...
Nc6 {[%clk 0:03:00.3]} 3. Bb5 {[%clk 0:03:00.2]} 3... g6 {[%clk 0:03:00.5]} 4.
Bxc6 {[%clk 0:02:58.4]} 4... bxc6 {[%clk 0:03:01.4]} 5. O-O {[%clk 0:02:58.2]}
5... Bg7 {[%clk 0:03:00.7]} 6. Re1 {[%clk 0:02:58.9]} 6... Qc7 {[%clk
0:03:00.7]} 7. Na3 {[%clk 0:02:57.4]} 7... Nh6 {[%clk 0:02:49.3]} 8. d3 {[%clk
0:02:47.3]} 8... O-O {[%clk 0:02:45.1]} 9. h3 {[%clk 0:02:40.4]} 9... f6 {[%clk
0:02:34.1]} 10. c3 {[%clk 0:02:34.7]} 10... Nf7 {[%clk 0:02:31.9]} 11. d4 {[%clk
0:02:28]} 11... cxd4 {[%clk 0:02:32.8]} 12. cxd4 {[%clk 0:02:28.6]} 12... d5
{[%clk 0:02:33]} 13. exd5 {[%clk 0:02:14.5]} 13... cxd5 {[%clk 0:02:33.9]} 14.
Nb5 {[%clk 0:02:14.2]} 14... Qd7 {[%clk 0:02:28.2]} 15. Nc3 {[%clk 0:02:13.8]}
15... Bb7 {[%clk 0:02:23.8]} 16. Na4 {[%clk 0:01:57]} 16... e5 {[%clk
0:02:23.3]} 17. Nc5 {[%clk 0:01:56.9]} 17... Qe7 {[%clk 0:02:17.2]} 18. Bf4
{[%clk 0:01:44]} 18... e4 {[%clk 0:02:13.1]} 19. Rc1 {[%clk 0:01:40.8]} 19...
Rac8 {[%clk 0:02:08.5]} 20. Qb3 {[%clk 0:01:34.7]} 20... Ba8 {[%clk 0:02:08.6]}
21. Nd2 {[%clk 0:00:55.2]} 21... g5 {[%clk 0:02:08.4]} 22. Bh2 {[%clk 0:00:49]}
22... f5 {[%clk 0:02:08.6]} 23. Qa4 {[%clk 0:00:46.7]} 23... f4 {[%clk
0:02:03.1]} 24. Kh1 {[%clk 0:00:42.4]} 24... Nh6 {[%clk 0:01:54.5]} 25. Ndb3
{[%clk 0:00:36]} 25... g4 {[%clk 0:01:49.8]} 26. Rc3 {[%clk 0:00:35.5]} 26...
Kh8 {[%clk 0:01:45.4]} 27. Qa6 {[%clk 0:00:31.4]} 27... Rc6 {[%clk 0:01:44.7]}
28. Qe2 {[%clk 0:00:31.1]} 28... Rg6 {[%clk 0:01:44.3]} 29. Nd3 {[%clk 0:00:27]}
29... gxh3 {[%clk 0:01:33.6]} 30. Nxf4 {[%clk 0:00:12.2]} 30... hxg2+ {[%clk
0:01:33.9]} 31. Kg1 {[%clk 0:00:11.7]} 31... Rxf4 {[%clk 0:01:33.5]} 32. Bxf4
{[%clk 0:00:12]} 32... Qh4 {[%clk 0:01:33.7]} 33. Bh2 {[%clk 0:00:07.9]} 33...
Ng4 {[%clk 0:01:26.7]} 34. Rc8+ {[%clk 0:00:07.4]} 34... Bf8 {[%clk 0:01:27.2]}
35. Rxf8+ {[%clk 0:00:07.2]} 35... Kg7 {[%clk 0:01:27.6]} 36. Qxg4 {[%clk
0:00:07.8]} 36... Rxg4 {[%clk 0:01:20.5]} 37. Rxa8 {[%clk 0:00:07.8]} 37... e3
{[%clk 0:01:21.1]} 38. Rxa7+ {[%clk 0:00:04.4]} 38... Kg6 {[%clk 0:01:20.3]} 0-1